bitfinex-derivatives/quotes_BTCF0:USTF0_20210109
["timestamp","ask_amount","ask_price","bid_price","bid_amount"]
[1610170092065,0.292,39713.0,39700.0,0.13632608]
[1610170092266,0.292,39713.0,39712.0,0.13632608]
[1610170094272,0.42832608,39713.0,39712.0,0.13632608]
[1610170094871,0.41642608,39713.0,39712.0,0.13632608]
[1610170095474,0.41642608,39713.0,39685.0,0.08788]
[1610170096376,0.2801,39713.0,39704.0,0.13632608]
[1610170097978,0.2683,39713.0,39704.0,0.13632608]
[1610170098379,0.2683,39713.0,39712.0,0.13632608]
[1610170100179,0.2683,39713.0,39685.0,0.08788]
[1610170100380,0.2683,39713.0,39705.0,0.13632608]
[1610170101082,0.2564,39713.0,39705.0,0.13632608]
[1610170102385,0.2564,39713.0,39712.0,0.13632608]
[1610170104088,0.2446,39713.0,39712.0,0.13632608]
[1610170104486,0.38092608,39713.0,39708.0,0.13632608]
[1610170104687,4.31882608,39713.0,39708.0,0.13632608]
[1610170105288,4.31882608,39713.0,39709.0,0.00022922]
[1610170107189,4.30722608,39713.0,39709.0,0.00022922]
[1610170107789,4.30722608,39713.0,39684.0,0.04493088]
[1610170108191,4.30722608,39713.0,39710.0,0.00022924]
[1610170108390,4.30722608,39713.0,39707.0,0.13632608]
[1610170108591,4.30722608,39713.0,39711.0,0.00022924]
[1610170108892,4.30722608,39713.0,39707.0,0.13632608]
[1610170109091,4.30722608,39713.0,39712.0,0.00022924]
[1610170109491,4.30722608,39713.0,39708.0,0.00022924]
[1610170109691,4.30722608,39713.0,39712.0,0.00022924]
[1610170109891,4.30722608,39713.0,39709.0,0.00022924]
[1610170110091,0.36932608,39713.0,39709.0,0.00022924]
[1610170110291,0.35722608,39713.0,39684.0,0.03228046]
[1610170110492,3.495,39697.0,39695.0,0.13632608]
[1610170110892,3.5947,39697.0,39695.0,0.13632608]
[1610170111090,3.5947,39697.0,39696.0,0.01264677]
[1610170112290,0.0997,39697.0,39696.0,0.01264677]
[1610170113293,0.0879,39697.0,39696.0,0.01264677]
[1610170114494,0.22422608,39697.0,39696.0,0.00022926]
[1610170115294,0.22422608,39697.0,39677.0,0.01264864]
[1610170115494,0.22422608,39697.0,39696.0,0.00022928]
[1610170115695,0.22422608,39697.0,39678.0,0.00022928]
[1610170115895,0.0879,39697.0,39678.0,0.00022928]
[1610170116096,0.2831,39707.0,39677.0,0.01264864]
[1610170116294,0.2831,39707.0,39679.0,0.00022928]
[1610170116495,0.2595,39707.0,39704.0,0.13632608]
[1610170118397,0.13632608,39705.0,39704.0,0.13632608]
[1610170118596,0.21326608,39705.0,39704.0,0.13632608]
[1610170118999,0.21326608,39705.0,39704.0,0.13655533]
[1610170119797,0.21236608,39705.0,39704.0,0.13655533]
[1610170120297,0.07694,39705.0,39704.0,0.13655533]
[1610170121902,0.07694,39705.0,39704.0,0.13632608]
[1610170122103,0.07694,39705.0,39704.0,0.13655532]
[1610170122503,0.09481,39714.0,39704.0,0.13655532]
[1610170122901,0.12402608,39721.0,39705.0,0.00022924]
[1610170123701,0.12402608,39721.0,39705.0,0.01264333]
[1610170125105,0.12402608,39721.0,39699.0,0.01264345]
[1610170125304,0.12583,39721.0,39706.0,0.01264298]
[1610170125505,0.12583,39721.0,39700.0,0.01264258]
[1610170125705,0.12583,39721.0,39707.0,0.01264226]
[1610170126106,0.11393,39721.0,39707.0,0.01264226]
[1610170126306,0.01438074,39727.0,39707.0,0.01264226]
[1610170126506,0.01440929,39733.0,39726.0,0.13632608]
[1610170126908,0.01444243,39735.0,39726.0,0.13632608]
[1610170127107,0.44384799,39738.0,39727.0,0.00022914]
[1610170127508,0.01446014,39736.0,39727.0,0.00022914]
[1610170127908,0.44413321,39737.0,39727.0,0.00022914]
[1610170128508,0.01451044,39738.0,39736.0,0.13632608]
[1610170128908,0.44574861,39737.0,39736.0,0.13632608]
[1610170129308,0.4312352,39737.0,39736.0,0.13632608]
[1610170129509,0.4312352,39737.0,39736.0,0.13655523]
[1610170129708,0.94899653,39737.0,39736.0,0.13655523]
[1610170130109,0.4312352,39737.0,39736.0,0.13655523]
[1610170130510,0.0073631,39738.0,39736.0,0.13655523]
[1610170130908,3.5364,39737.0,39736.0,0.00022915]
[1610170131110,3.5364,39737.0,39714.0,0.12728]
[1610170131510,3.96981893,39737.0,39715.0,0.00022913]
[1610170131912,0.00735414,39728.0,39715.0,0.00022913]
[1610170132312,0.42859489,39730.0,39715.0,0.00022913]
[1610170132915,0.51955953,39731.0,39715.0,0.00022913]
[1610170133316,0.88839726,39729.0,39715.0,0.00022913]
[1610170133714,0.51937863,39727.0,39715.0,0.00022913]
[1610170133914,0.51937863,39727.0,39716.0,0.00022918]
[1610170134114,0.51938829,39726.0,39716.0,0.00022918]
[1610170134516,0.13632608,39723.0,39706.0,0.00022918]
[1610170134714,0.13632608,39723.0,39717.0,0.00022918]
[1610170134915,0.65579102,39723.0,39707.0,0.00022918]
[1610170135316,1.01337561,39723.0,39706.0,0.00022918]
[1610170135517,1.01337561,39723.0,39708.0,0.00022918]
[1610170135716,0.64419102,39723.0,39707.0,0.00022918]
[1610170136017,0.64419102,39723.0,39708.0,0.00022918]
[1610170136418,0.89153463,39722.0,39708.0,0.00022918]
[1610170136618,0.89153463,39722.0,39706.0,0.00022918]
[1610170136819,0.12038,39727.0,39705.0,0.111]
[1610170136820,0.5226931,39723.0,39709.0,0.00022918]
[1610170137219,0.5226931,39723.0,39707.0,0.00022916]
[1610170137419,0.52289563,39725.0,39710.0,0.00022916]
[1610170137621,0.52289563,39725.0,39708.0,0.00022916]
[1610170137818,0.52289563,39725.0,39711.0,0.00022916]
[1610170138019,0.89222984,39726.0,39711.0,0.00022916]
[1610170138218,0.89222984,39726.0,39706.0,0.01264034]
[1610170138419,0.52329895,39725.0,39712.0,0.00022916]
[1610170138619,0.52329895,39725.0,39707.0,0.00022916]
[1610170139019,3.0669,39723.0,39706.0,0.00022916]
[1610170139219,3.0669,39723.0,39708.0,0.00022918]
[1610170139419,0.5228324,39721.0,39707.0,0.00022918]
[1610170139621,0.52242205,39718.0,39707.0,0.00022918]
[1610170139818,0.52242205,39718.0,39706.0,0.00022918]
[1610170140020,0.62869654,39719.0,39708.0,0.00022918]
[1610170140221,0.62869654,39719.0,39707.0,0.00022918]
[1610170140418,0.62869654,39719.0,39718.0,0.13632608]
[1610170140619,0.10605,39719.0,39718.0,0.13632608]
[1610170140818,0.10605,39719.0,39718.0,0.13655526]
[1610170141420,0.09455,39719.0,39718.0,0.13655526]
[1610170141821,0.09455,39719.0,39718.0,0.13632608]
[1610170142321,0.98627639,39719.0,39718.0,0.13632608]
[1610170143722,0.09455,39719.0,39718.0,0.13632608]
[1610170143922,0.09455,39719.0,39718.0,0.13655526]
[1610170144523,0.08245,39719.0,39718.0,0.13655526]
[1610170144724,0.68095,39719.0,39718.0,0.13655526]
[1610170145326,1.57277343,39719.0,39718.0,0.13655526]
[1610170145525,1.57277343,39719.0,39718.0,0.00022918]
[1610170146125,1.57277343,39719.0,39700.0,0.01264358]
[1610170146324,1.57277343,39719.0,39718.0,0.00022921]
[1610170146525,0.68095,39719.0,39718.0,0.13632608]
[1610170146824,0.68095,39719.0,39718.0,0.13655529]
[1610170147026,1.57270961,39719.0,39718.0,0.13655529]
[1610170147627,1.56090961,39719.0,39718.0,0.00022921]
[1610170147829,2.19945612,39719.0,39718.0,0.00022921]
[1610170148229,2.92437661,39719.0,39681.0,0.04492038]
[1610170148430,2.92437661,39719.0,39718.0,0.00022923]
[1610170148630,2.92437661,39719.0,39681.0,0.04469115]
[1610170148631,2.92437661,39719.0,39682.0,0.00022925]
[1610170148833,0.52139554,39708.0,39682.0,0.00022925]
[1610170149032,0.52139554,39708.0,39681.0,0.0449204]
[1610170149233,0.52139664,39707.0,39683.0,0.00022925]
[1610170149432,0.52139664,39707.0,39681.0,0.04469115]
[1610170149433,3.2313,39691.0,39682.0,0.00022925]
[1610170149834,3.2313,39691.0,39684.0,0.00022925]
[1610170150038,3.2313,39691.0,39678.0,0.00022925]
[1610170150235,0.1031,39700.0,39685.0,0.00022925]
[1610170150437,3.28002608,39686.0,39685.0,0.00022925]
[1610170150636,3.26842608,39686.0,39682.0,0.13632608]
[1610170150835,0.13632608,39686.0,39685.0,0.00022928]
[1610170151035,0.13632608,39686.0,39683.0,0.00022928]
[1610170151235,0.09446,39692.0,39685.0,0.00022928]
[1610170151634,0.09446,39692.0,39683.0,0.00022928]
[1610170151836,0.09446,39692.0,39686.0,0.00022928]
[1610170152237,0.09446,39692.0,39684.0,0.0002293]
[1610170152436,0.09446,39692.0,39691.0,0.13632608]
[1610170152837,0.09446,39692.0,39691.0,0.13655538]
[1610170153639,0.08256,39692.0,39691.0,0.13655538]
[1610170153839,0.08256,39692.0,39691.0,0.0002293]
[1610170154240,0.08256,39692.0,39677.0,0.0002293]
[1610170154440,0.08256,39692.0,39691.0,0.0002293]
[1610170154842,0.08256,39692.0,39678.0,0.0002293]
[1610170155041,0.08256,39692.0,39691.0,0.0002293]
[1610170155240,0.08256,39692.0,39679.0,0.0002293]
[1610170155644,0.08256,39692.0,39691.0,0.0002293]
[1610170155844,4.1607,39692.0,39680.0,0.00022932]
[1610170156043,4.1607,39692.0,39668.0,0.1043]
[1610170156242,4.1607,39692.0,39647.0,3.9895]
[1610170156243,5.04995169,39692.0,39647.0,3.9895]
[1610170156443,0.88925169,39692.0,39681.0,0.00022934]
[1610170156644,0.13632608,39682.0,39665.0,0.13632608]
[1610170156841,4.45429608,39682.0,39665.0,0.13632608]
[1610170157042,4.45429608,39682.0,39660.0,0.08437]
[1610170157043,4.33017,39682.0,39660.0,0.08437]
[1610170157242,4.33017,39682.0,39666.0,0.00022942]
[1610170157442,4.33017,39682.0,39661.0,0.00022944]
[1610170157642,0.88753768,39681.0,39667.0,0.00022944]
[1610170157843,0.88753768,39681.0,39662.0,0.00022944]
[1610170158043,0.51806613,39679.0,39662.0,0.00022944]
[1610170158246,0.51806613,39679.0,39658.0,2.9359]
[1610170158443,0.51806613,39679.0,39663.0,0.00022944]
[1610170158643,0.51806613,39679.0,39671.0,0.13632608]
[1610170158843,0.88721417,39681.0,39671.0,0.13632608]
[1610170159443,0.12727,39682.0,39671.0,0.13632608]
[1610170160042,0.11537,39682.0,39671.0,0.13632608]
[1610170160242,0.11537,39682.0,39672.0,0.00022942]
[1610170160645,0.11537,39682.0,39681.0,0.13632608]
[1610170161849,0.2842,39687.0,39681.0,0.13632608]
[1610170162450,0.2842,39687.0,39657.0,0.11703]
[1610170162651,0.13632608,39677.0,39667.0,0.13632608]
[1610170163052,0.12432608,39677.0,39667.0,0.13632608]
[1610170163250,0.23076608,39677.0,39668.0,0.00022943]
[1610170163451,4.0636,39671.0,39668.0,0.00022943]
[1610170163651,4.0636,39671.0,39649.0,0.11234]
[1610170163851,0.23076608,39677.0,39618.0,0.5]
[1610170164052,3.3971,39662.0,39618.0,0.08371]
[1610170164251,3.3971,39662.0,39619.0,0.01266922]
[1610170164652,0.13632608,39660.0,39658.0,0.13632608]
[1610170165052,0.13632608,39660.0,39659.0,0.00023067]
[1610170165254,0.1148,39664.0,39659.0,0.00023067]
[1610170166054,0.10644,39677.0,39659.0,0.00023067]
[1610170166251,0.09464,39677.0,39659.0,0.00023067]
[1610170166653,0.13632608,39674.0,39665.0,0.13632608]
[1610170167254,0.13632608,39674.0,39666.0,0.00023063]
[1610170167453,0.09464,39677.0,39666.0,0.00023063]
[1610170167654,0.09464,39677.0,39665.0,0.13632608]
[1610170168055,0.09464,39677.0,39667.0,0.00023064]
[1610170168254,0.42934206,39680.0,39666.0,0.00023064]
[1610170168454,0.42951902,39686.0,39668.0,0.00023062]
[1610170168856,0.42933151,39684.0,39667.0,0.00023062]
[1610170169055,0.42933151,39684.0,39669.0,0.00023062]
[1610170169256,0.41729843,39685.0,39651.0,3.7138]
[1610170169656,0.88418739,39684.0,39651.0,3.7138]
[1610170169856,0.88418739,39684.0,39652.0,0.00023064]
[1610170170057,0.51459686,39684.0,39652.0,0.00023064]
[1610170170656,0.13632608,39676.0,39672.0,0.13632608]
[1610170170857,0.12531,39676.0,39672.0,0.13632608]
[1610170171460,0.12531,39676.0,39666.0,3.7817]
[1610170171858,0.12531,39676.0,39667.0,0.0002306]
[1610170172059,0.09596,39686.0,39667.0,0.0002306]
[1610170172458,0.08406,39686.0,39667.0,0.0002306]
[1610170172660,0.08406,39686.0,39685.0,0.13632608]
[1610170173159,0.08406,39686.0,39685.0,0.13655664]
[1610170173360,0.08406,39686.0,39685.0,0.00023056]
[1610170173559,0.08406,39686.0,39663.0,0.09465]
[1610170173960,0.08406,39686.0,39664.0,0.00023059]
[1610170174160,0.51685295,39697.0,39664.0,0.00023059]
[1610170174361,0.51662924,39695.0,39664.0,0.00023059]
[1610170174560,0.13632608,39694.0,39684.0,0.13632608]
[1610170174761,0.65273019,39694.0,39684.0,0.13632608]
[1610170175162,0.13632608,39694.0,39684.0,0.13632608]
[1610170175360,0.12482608,39694.0,39684.0,0.13632608]
[1610170175561,0.12482608,39694.0,39663.0,0.09465]
[1610170175961,0.64117777,39694.0,39663.0,0.09465]
[1610170176163,0.64117777,39694.0,39664.0,0.00023059]
[1610170176562,0.13632608,39684.0,39678.0,0.13632608]
[1610170176762,0.00301023,39689.0,39678.0,0.13632608]
[1610170176961,0.1023,39684.0,39679.0,0.00023059]
[1610170178364,0.0907,39684.0,39679.0,0.00023059]
[1610170178563,0.0907,39684.0,39683.0,0.13632608]
[1610170178967,0.0907,39684.0,39683.0,0.13655662]
[1610170181568,0.0789,39684.0,39683.0,0.13655662]
[1610170181966,0.08844,39692.0,39683.0,0.13655662]
[1610170182565,0.08844,39692.0,39684.0,0.00023054]
[1610170182767,0.08844,39692.0,39691.0,0.13632608]
[1610170183367,0.08844,39692.0,39691.0,0.13655662]
[1610170183767,0.2949,39699.0,39691.0,0.13655662]
[1610170184368,0.2949,39699.0,39692.0,0.00023052]
[1610170184568,0.2833,39699.0,39692.0,0.00023052]
[1610170184768,0.2833,39699.0,39698.0,0.13632608]
[1610170185169,0.2833,39699.0,39698.0,0.1365566]
[1610170185968,0.2833,39699.0,39698.0,0.00023052]
[1610170186169,0.28631906,39699.0,39698.0,0.00023052]
[1610170186369,0.28631906,39699.0,39672.0,0.0131161]
[1610170186571,0.2833,39699.0,39672.0,0.0131161]
[1610170186773,0.2833,39699.0,39698.0,0.1365566]
[1610170186971,0.2833,39699.0,39698.0,0.13632608]
[1610170187174,0.2833,39699.0,39698.0,0.1365566]
[1610170187771,0.2711,39699.0,39698.0,0.1365566]
[1610170189173,0.1031,39700.0,39698.0,0.1365566]
[1610170189571,0.00302487,39703.0,39699.0,0.0002305]
[1610170189773,0.00302754,39704.0,39699.0,0.0002305]
[1610170190172,0.00302673,39703.0,39699.0,0.0002305]
[1610170190572,0.00302627,39701.0,39699.0,0.0002305]
[1610170190772,0.6462855,39705.0,39699.0,0.0002305]
[1610170190972,0.13632608,39705.0,39699.0,0.0002305]
[1610170191576,0.12185,39708.0,39699.0,0.0002305]
[1610170191775,0.63447777,39710.0,39698.0,0.13632608]
[1610170192080,0.63542431,39713.0,39698.0,0.13632608]
[1610170192676,0.6355061,39712.0,39705.0,0.13632608]
[1610170192976,0.63426056,39707.0,39705.0,0.13632608]
[1610170193376,0.63342679,39706.0,39705.0,0.13632608]
[1610170193775,0.99132704,39706.0,39705.0,0.13632608]
[1610170194177,0.62192679,39706.0,39705.0,0.13632608]
[1610170194680,0.75825287,39706.0,39680.0,2.8914]
[1610170194877,0.1556,39705.0,39680.0,2.8914]
[1610170195078,0.52501692,39705.0,39681.0,0.01311607]
[1610170195780,0.36941483,39704.0,39681.0,0.01311607]
[1610170195979,0.47996483,39704.0,39681.0,0.01311607]
[1610170196580,0.36941216,39703.0,39681.0,0.01311607]
[1610170196779,0.35781216,39703.0,39702.0,0.13632608]
[1610170196980,0.11055,39704.0,39702.0,0.13632608]
[1610170197181,0.11055,39704.0,39702.0,0.13655661]
[1610170197380,0.36940971,39703.0,39702.0,0.13632608]
[1610170197981,0.36940971,39703.0,39702.0,0.1365566]
[1610170198381,0.36940971,39703.0,39702.0,0.13501745]
[1610170198780,0.50573579,39703.0,39702.0,0.13501745]
[1610170199481,0.93458485,39703.0,39702.0,0.13501745]
[1610170200083,0.92198485,39703.0,39702.0,0.13501745]
[1610170200284,0.56517514,39703.0,39702.0,0.13501745]
[1610170200784,0.79823688,39703.0,39702.0,0.13501745]
[1610170201986,0.42884906,39703.0,39702.0,0.13501745]
[1610170202386,0.7982522,39703.0,39702.0,0.13501746]
[1610170202687,0.56517514,39703.0,39702.0,0.13501746]
[1610170203286,1.63873579,39703.0,39702.0,0.13501746]
[1610170203886,1.63873579,39703.0,39702.0,0.00023053]
[1610170204289,1.63873579,39703.0,39675.0,0.01311664]
[1610170204488,1.63873579,39703.0,39702.0,0.00023053]
[1610170204691,0.13632608,39703.0,39702.0,0.00023053]
[1610170204889,0.13632608,39703.0,39676.0,0.00023055]
[1610170205089,1.2246634,39703.0,39702.0,0.00023057]
[1610170205290,1.49976943,39702.0,39675.0,0.01288611]
[1610170205490,1.2246634,39703.0,39675.0,0.01288611]
[1610170205491,2.02919764,39703.0,39675.0,0.01288611]
[1610170205690,2.02950579,39703.0,39671.0,0.0128838]
[1610170205893,2.02950579,39703.0,39676.0,0.01311521]
[1610170205894,0.71851736,39692.0,39676.0,0.01311521]
[1610170206092,0.71851736,39692.0,39672.0,0.01311525]
[1610170206291,0.82840736,39692.0,39672.0,0.01311525]
[1610170206492,0.10989,39692.0,39677.0,0.01311614]
[1610170206692,0.2904,39691.0,39673.0,0.01311673]
[1610170206894,0.13632608,39678.0,39676.0,0.13632608]
[1610170207092,0.21576608,39678.0,39676.0,0.13632608]
[1610170207493,0.21576608,39678.0,39677.0,0.01311711]
[1610170207893,0.21576608,39678.0,39677.0,0.00023061]
[1610170208094,0.5853506,39678.0,39677.0,0.00023061]
[1610170208494,3.6886506,39678.0,39677.0,0.00023061]
[1610170208894,4.24309941,39678.0,39659.0,0.13632608]
[1610170209495,0.92412666,39677.0,39659.0,0.13632608]
[1610170209695,0.554476,39677.0,39659.0,0.13632608]
[1610170209898,0.92413696,39677.0,39659.0,0.13632608]
[1610170210697,1.5,39676.0,39659.0,0.13632608]
[1610170210897,0.13632608,39660.0,39659.0,0.13632608]
[1610170211098,0.23649608,39660.0,39659.0,0.13632608]
[1610170211497,0.23649608,39660.0,39659.0,0.13655675]
[1610170211697,0.23649608,39660.0,39659.0,0.00023067]
[1610170212298,3.5348,39655.0,39628.0,0.04605728]
[1610170212498,3.5229,39655.0,39619.0,0.01288701]
[1610170212698,3.5229,39655.0,39629.0,0.00023071]
[1610170212897,0.3,39654.0,39629.0,0.00023071]
[1610170213098,0.3,39654.0,39620.0,0.01311978]
[1610170213307,3.0871,39638.0,39630.0,0.00023073]
[1610170213498,3.0871,39638.0,39621.0,0.00023076]
[1610170213700,3.0871,39638.0,39631.0,0.00023078]
[1610170214097,3.0871,39638.0,39632.0,0.00023078]
[1610170214299,0.11929,39641.0,39632.0,0.00023078]
[1610170214698,0.11929,39641.0,39619.0,0.00023078]
[1610170214899,0.11929,39641.0,39609.0,0.12263]
[1610170214900,0.11929,39641.0,39640.0,0.13632608]
[1610170215701,4.0714,39654.0,39640.0,0.13632608]
[1610170216300,0.10017,39660.0,39640.0,0.13632608]
[1610170216699,0.59036692,39661.0,39640.0,0.13632608]
[1610170216900,0.51323497,39658.0,39629.0,0.11145]
[1610170217099,0.61516497,39658.0,39629.0,0.11145]
[1610170217301,0.10193,39658.0,39629.0,0.11145]
[1610170217501,0.10193,39658.0,39630.0,0.00023121]
[1610170218902,0.10193,39658.0,39624.0,3.8774]
[1610170218903,0.88233657,39657.0,39640.0,0.13632608]
[1610170219103,0.88233657,39657.0,39624.0,3.8774]
[1610170219306,0.51228535,39655.0,39624.0,3.8774]
[1610170219504,0.51228535,39655.0,39625.0,0.00023123]
[1610170219905,0.51216646,39654.0,39625.0,0.00023123]
[1610170220307,0.51216646,39654.0,39624.0,3.8774]
[1610170220706,0.51198992,39656.0,39624.0,3.8774]
[1610170220905,0.51198992,39656.0,39646.0,0.13632608]
[1610170221404,0.51198992,39656.0,39625.0,0.00023127]
[1610170221405,0.08973,39658.0,39624.0,3.8774]
[1610170221806,0.60163788,39658.0,39624.0,3.8774]
[1610170222004,0.58963788,39658.0,39624.0,3.8774]
[1610170222204,0.95951677,39658.0,39624.0,3.8774]
[1610170222605,0.58963788,39658.0,39618.0,0.12706]
[1610170222805,0.58963788,39658.0,39650.0,0.13632608]
[1610170223008,0.07773,39658.0,39650.0,0.13632608]
[1610170223406,0.51192606,39661.0,39650.0,0.13632608]
[1610170224006,0.51192606,39661.0,39608.0,3.7235]
[1610170224207,3.63155582,39664.0,39608.0,3.7235]
[1610170224208,0.51191957,39659.0,39608.0,3.7235]
[1610170224608,0.51156705,39658.0,39609.0,0.00023127]
[1610170224808,0.51156705,39658.0,39645.0,0.13632608]
[1610170225008,0.49976705,39658.0,39645.0,0.13632608]
[1610170225812,0.09181,39659.0,39645.0,0.13632608]
[1610170226413,3.18461,39659.0,39645.0,0.13632608]
[1610170226813,0.13632608,39646.0,39645.0,0.13632608]
[1610170227215,0.25647608,39646.0,39645.0,0.13632608]
[1610170228014,0.12015,39646.0,39645.0,0.13632608]
[1610170229016,0.25647608,39646.0,39645.0,0.13632608]
[1610170229818,0.12015,39646.0,39645.0,0.13632608]
[1610170230919,0.25647608,39646.0,39645.0,0.13632608]
[1610170231317,0.10775,39646.0,39645.0,0.13632608]
[1610170232319,0.09181,39659.0,39645.0,0.13632608]
[1610170232718,3.9017,39660.0,39645.0,0.13632608]
[1610170232920,3.9017,39660.0,39653.0,0.13632608]
[1610170233423,3.9017,39660.0,39618.0,2.9713]
[1610170233424,0.36985231,39659.0,39618.0,2.9713]
[1610170233622,0.42869488,39657.0,39618.0,2.9713]
[1610170233821,0.42869488,39657.0,39619.0,0.01294696]
[1610170234022,0.42859384,39656.0,39619.0,0.01294696]
[1610170234423,0.41669384,39656.0,39619.0,0.01294696]
[1610170235022,0.41669384,39656.0,39643.0,0.13632608]
[1610170235423,0.36987324,39658.0,39643.0,0.13632608]
[1610170236225,0.99849244,39658.0,39643.0,0.13632608]
[1610170236926,0.13632608,39644.0,39639.0,0.13632608]
[1610170237127,0.25708608,39644.0,39639.0,0.13632608]
[1610170237529,0.24518608,39644.0,39639.0,0.13632608]
[1610170238030,0.24518608,39644.0,39640.0,0.00023056]
[1610170240634,0.23328608,39644.0,39640.0,0.00023056]
[1610170242437,0.00030848,39643.0,39640.0,0.00023056]
[1610170243638,0.22169456,39644.0,39640.0,0.00023056]
[1610170246744,0.20979456,39644.0,39640.0,0.00023056]
[1610170249846,0.19789456,39644.0,39640.0,0.00023056]
[1610170252954,0.18609456,39644.0,39640.0,0.00023056]
[1610170254157,0.20076868,39644.0,39640.0,0.00023056]
[1610170254358,0.20076868,39644.0,39619.0,0.04574468]
[1610170254557,0.01468784,39643.0,39619.0,0.04574468]
[1610170254757,0.01468784,39643.0,39641.0,0.00023064]
[1610170254959,0.01468784,39643.0,39620.0,0.00023064]
[1610170255159,0.01468784,39643.0,39642.0,0.00023064]
[1610170255558,0.01468784,39643.0,39633.0,0.13632608]
[1610170255759,0.01468784,39643.0,39642.0,0.00023064]
[1610170255961,3.28208784,39643.0,39634.0,0.00023064]
[1610170256160,3.2674,39643.0,39642.0,0.00023064]
[1610170256460,3.2674,39643.0,39633.0,0.13632608]
[1610170256461,3.2674,39643.0,39634.0,0.01296063]
[1610170256863,3.2674,39643.0,39642.0,0.00023064]
[1610170257064,0.70997693,39644.0,39635.0,0.00023064]
[1610170257261,0.70997693,39644.0,39642.0,0.00023064]
[1610170257661,0.70997693,39644.0,39636.0,0.00023064]
[1610170257861,0.70997693,39644.0,39643.0,0.00023064]
[1610170258062,1.59555747,39644.0,39637.0,0.00023064]
[1610170258263,1.07995747,39644.0,39637.0,0.00023064]
[1610170258463,4.1584,39638.0,39620.0,0.03278753]
[1610170258663,0.52484146,39640.0,39638.0,0.00023069]
[1610170258863,0.18609456,39644.0,39601.0,0.03279451]
[1610170258864,0.5242044,39635.0,39621.0,0.01296404]
[1610170259062,0.12462608,39622.0,39618.0,0.13632608]
[1610170259467,0.12462608,39622.0,39619.0,0.01296476]
[1610170260062,0.09316,39625.0,39619.0,0.01296476]
[1610170261063,0.09316,39625.0,39624.0,0.13632608]
[1610170261465,0.09316,39625.0,39624.0,0.1492903]
[1610170261664,0.61346,39625.0,39624.0,0.1492903]
[1610170262266,0.58966,39625.0,39624.0,0.1492903]
[1610170263268,0.58966,39625.0,39624.0,0.14905959]
[1610170263467,0.58966,39625.0,39624.0,0.14929029]
[1610170264869,0.58966,39625.0,39624.0,0.13655678]
[1610170265470,1.02692647,39625.0,39624.0,0.13655678]
[1610170265670,1.02692647,39625.0,39624.0,0.0002307]
[1610170266069,1.02692647,39625.0,39603.0,0.01296489]
[1610170266271,1.02692647,39625.0,39624.0,0.0002307]
[1610170266470,1.02692647,39625.0,39604.0,0.0002307]
[1610170266671,1.92182185,39625.0,39604.0,0.0002307]
[1610170266870,1.92182185,39625.0,39624.0,0.0002307]
[1610170267071,0.43664295,39624.0,39605.0,0.0002307]
[1610170267272,0.43664295,39624.0,39603.0,0.01273419]
[1610170267571,0.43688768,39623.0,39606.0,0.0002307]
[1610170267771,0.43688768,39623.0,39603.0,0.01296489]
[1610170268573,0.42488768,39623.0,39603.0,0.01296489]
[1610170268776,0.43661206,39621.0,39603.0,0.01296489]
[1610170268975,3.7887,39609.0,39603.0,0.01296489]
[1610170269176,3.7887,39609.0,39608.0,0.13632608]
[1610170269777,3.7887,39609.0,39608.0,0.14929297]
[1610170270978,3.7887,39609.0,39608.0,0.13655681]
[1610170271178,3.92502608,39609.0,39608.0,0.13655681]
[1610170271378,3.92502608,39609.0,39608.0,0.14929392]
[1610170271777,3.91262608,39609.0,39608.0,0.13655681]
[1610170271977,3.7763,39609.0,39608.0,0.13655681]
[1610170272178,0.5219418,39615.0,39608.0,0.14929345]
[1610170272382,0.61687215,39616.0,39608.0,0.14929346]
[1610170272577,0.61687215,39616.0,39609.0,0.01296689]
[1610170272778,0.09479,39616.0,39609.0,0.01296689]
[1610170273181,0.09479,39616.0,39615.0,0.13632608]
[1610170273579,0.09479,39616.0,39615.0,0.14929058]
[1610170274179,0.06866,39625.0,39615.0,0.14929058]
[1610170274379,0.5238229,39629.0,39615.0,0.14929058]
[1610170274679,0.5238229,39629.0,39616.0,0.01296267]
[1610170274882,0.52357033,39628.0,39616.0,0.01296267]
[1610170275078,0.51127033,39628.0,39627.0,0.13632608]
[1610170275280,0.63995445,39632.0,39627.0,0.13632608]
[1610170275481,0.63995445,39632.0,39627.0,0.13655676]
[1610170275679,0.63995445,39632.0,39628.0,0.00023068]
[1610170276081,0.6398838,39631.0,39628.0,0.00023068]
[1610170276484,1.00991949,39631.0,39628.0,0.00023068]
[1610170276783,0.6398838,39631.0,39628.0,0.00023068]
[1610170277284,0.13632608,39630.0,39628.0,0.00023068]
[1610170277682,0.37004447,39629.0,39628.0,0.00023068]
[1610170278184,0.35824447,39629.0,39628.0,0.00023068]
[1610170278385,0.99958589,39629.0,39628.0,0.00023068]
[1610170279187,0.35824447,39629.0,39628.0,0.00023068]
[1610170280889,0.13632608,39630.0,39628.0,0.00023068]
[1610170281291,0.12382608,39630.0,39628.0,0.00023068]
[1610170281491,0.37003937,39629.0,39628.0,0.00023068]
[1610170281892,0.64206435,39631.0,39628.0,0.00023068]
[1610170282293,0.37004128,39629.0,39628.0,0.00023068]
[1610170282694,0.64206435,39631.0,39628.0,0.00023068]
[1610170283194,0.13632608,39630.0,39628.0,0.00023068]
[1610170283795,0.37003613,39629.0,39628.0,0.00023068]
[1610170284599,0.35793613,39629.0,39628.0,0.00023068]
[1610170285197,0.35793613,39629.0,39628.0,0.01145805]
[1610170285400,1.00069113,39629.0,39628.0,0.01145805]
[1610170287804,0.98839113,39629.0,39628.0,0.01145805]
[1610170291002,0.97619113,39629.0,39628.0,0.01145805]
[1610170293306,0.64612362,39631.0,39628.0,0.01145805]
[1610170293707,0.64679131,39634.0,39628.0,0.04219227]
[1610170293908,0.0646,39633.0,39628.0,0.04219227]
[1610170294807,0.65033665,39643.0,39628.0,0.04219227]
[1610170295008,0.65054061,39644.0,39628.0,1.54219227]
[1610170295208,0.65054061,39644.0,39643.0,0.13632608]
[1610170295407,0.65247805,39647.0,39643.0,3.85532608]
[1610170295607,0.65247805,39647.0,39643.0,3.86677399]
[1610170295808,0.653194,39651.0,39644.0,0.01144732]
[1610170296808,0.65360845,39653.0,39644.0,0.01144732]
[1610170297007,0.92464307,39672.0,39644.0,0.01144732]
[1610170297008,0.65403602,39654.0,39644.0,0.01144732]
[1610170297210,0.65403602,39654.0,39653.0,0.13632608]
[1610170297410,0.7432173,39660.0,39653.0,0.13632608]
[1610170297609,0.7432173,39660.0,39653.0,0.13655283]
[1610170297813,0.36979248,39654.0,39653.0,0.13655283]
[1610170298010,0.36979248,39654.0,39653.0,0.13632608]
[1610170298208,0.74326359,39661.0,39653.0,0.13655283]
[1610170298209,0.36978774,39659.0,39653.0,0.13655283]
[1610170298610,0.36978912,39660.0,39653.0,0.13655283]
[1610170298810,0.36978912,39660.0,39654.0,0.00022675]